Cogmind - Beta 10.2 @@@ ROGUE MODE // 2020.11.10 @ 16:40:21 // Halloween2020/ForbiddenLore Player: sentrybuster Result: Self-destructed Performance ------------- Evolutions (1) 500 Regions Visited (3) 600 Robots Destroyed (11) 55 Value Destroyed (354) 354 Prototype IDs (0) 0 Alien Tech Used (0) 0 Bonus (0) 0 TOTAL SCORE: 1509 Bonus ------- None Cogmind --------- Core Integrity 159/400 Matter 266/300 Energy 100/100 System Corruption 0% Temperature Cool (0) Movement Core (50) Location -9/Materials Parts ------- > --- POWER (1) -------- (None) > --- PROPULSION (2) --- (None) > --- UTILITY (3) ------ (None) > --- WEAPON (3) ------- (None) > --- INVENTORY (4) ---- Small Storage Unit Improved Trap Extractor Light Assault Rifle Peak State ------------ > --- POWER ------------ Ion Engine > --- PROPULSION ------- Aluminum Leg Carbon-fiber Leg > --- UTILITY ---------- Small Storage Unit Sensor Array > --- WEAPON ----------- Shock Rifle EM Pulse Cannon > --- INVENTORY -------- Light Ion Engine Improved Trap Extractor Particle Gun Rocket Launcher [Rating: 13] Favorites ----------- Power Ion Engine Engine Ion Engine Propulsion Carbon-fiber Leg Leg Carbon-fiber Leg Wheel Wheel Utility Small Storage Unit Device Sensor Array Storage Small Storage Unit Weapon EM Pulse Cannon Energy Gun Shock Rifle Energy Cannon EM Pulse Cannon Ballistic Gun Light Assault Rifle Launcher Grenade Launcher Build | -11 -10 -10 -9 ------- Run | Scr Mat Min Mat Slots Evolved 2 | . . . 2 Power . | . . . . Propulsion . | . . . . Utility 1 | . . . 1 Weapon 1 | . . . 1 Parts Attached 18 | 6 1 7 4 Power 2 | 1 . . 1 Engine 2 | 1 . . 1 Core . | . . . . Reactor . | . . . . Propulsion 5 | 2 . 3 . Treads . | . . . . Leg 2 | . . 2 . Wheel 3 | 2 . 1 . Hover . | . . . . Flight . | . . . . Utility 2 | 1 1 . . Device 1 | . 1 . . Storage 1 | 1 . . . Processor . | . . . . Hackware . | . . . . Protection . | . . . . Artifact . | . . . . Weapon 9 | 2 . 4 3 Energy Gun 4 | 2 . 1 1 Energy Cannon 2 | . . 1 1 Ballistic Gun 1 | . . . 1 Ballistic Cannon . | . . . . Launcher 2 | . . 2 . Special Weapon . | . . . . Impact Weapon . | . . . . Slashing Weapon . | . . . . Piercing Weapon . | . . . . Special Melee Weapon . | . . . . Unidentified Prototypes . | . . . . Parts Lost 14 | . . 5 9 Power 2 | . . . 2 Propulsion 5 | . . 3 2 Utility 1 | . . . 1 Weapon 6 | . . 2 4 Highest Loss Streak 9 | . . 2 9 Average Slot Usage (%) 89 | . 100 92 52 Engine 13 | . 14 14 5 Leg 11 | . . 14 6 Wheel 9 | . 28 6 8 Device 13 | . 14 14 9 Storage 13 | . 14 14 9 Energy Gun 10 | . 28 8 6 Energy Cannon 8 | . . 10 . Launcher 7 | . . 8 5 Naked Turns 13 | . . . 13 Heaviest Build 19 | 13 14 19 17 Greatest Support 26 | 26 26 26 10 Greatest Overweight (x) 2 | . . 1 2 Average Overweight (x) . | . . . . Largest Inventory Capacity 6 | 6 6 6 6 Average Capacity 5 | 5 6 6 5 Most Carried 6 | 4 5 6 4 Average Carried 4 | 2 4 4 3 Final Capacity 6 | 6 6 6 4 Final Carried 5 | 4 5 4 3 Class Distribution -------------------- 100% | Mutant Dominant Class ---------------- Mutant | -10/Materials Mutant | -10/Mines Mutant | -9/Materials Resources | -11 -10 -10 -9 ----------- Run | Scr Mat Min Mat Matter Collected 434 | 205 . 229 . Remotely . | . . . . Salvage Created 329 | . . 271 58 Parts 22 | . . 13 9 Haulers Intercepted . | . . . . Recyclers Shooed . | . . . . Parts Field Recycled . | . . . . Retrieved Matter . | . . . . Parts Self-Destructed . | . . . . Prevented . | . . . . Kills | -11 -10 -10 -9 ------- Run | Scr Mat Min Mat Combat Hostiles Destroyed 20 | . . 15 5 Guns 4 | . . 2 2 Cannons 4 | . . 4 . AOE 11 | . . 8 3 Classes Destroyed 7 | . . 4 3 Builder 1 | . . 1 . Operator 1 | . . . 1 Swarmer 4 | . . . 4 Grunt 3 | . . 3 . Sentry 1 | . . . 1 Demolisher 1 | . . 1 . Assembled 11 | . . 11 . Best Kill Streak 6 | . . 6 5 Combat Bots Only 6 | . . 6 5 Max Kills in Single Turn 2 | . . 2 2 Gunslinging . | . . . . Exploded 2 | . . 2 2 Melee . | . . . . Uniques/NPCs Destroyed . | . . . . Combat | -11 -10 -10 -9 -------- Run | Scr Mat Min Mat Damage Taken 1304 | . . 670 634 Core 366 | . . 125 241 Absorbed by Shields . | . . . . Core Remaining (%) 75 | 100 . 50 . Volleys Fired 38 | . 1 29 8 Largest 2 | . 2 2 2 Hottest 113 | . 90 113 83 Shots Fired 68 | . 2 54 12 Gun 36 | . 2 26 8 Cannon 17 | . . 17 . Launcher 15 | . . 11 4 Special . | . . . . Kinetic 1 | . . . 1 Thermal 9 | . 1 7 1 Explosive 15 | . . 11 4 Electromagnetic 43 | . 1 36 6 Robot Hit Streak 5 | . 1 5 3 Robot Miss Streak 5 | . 1 3 5 Penetration Max . | . . . . Secondary Targets . | . . . . Shots Hit Robots 37 | . 1 32 4 Core Hits 34 | . . 25 9 Critical Hits . | . . . . Critical Kills . | . . . . Critical Parts Destroyed . | . . . . Melee Attacks . | . . . . Impact . | . . . . Slashing . | . . . . Piercing . | . . . . Sneak Attacks . | . . . . Combat Hostiles . | . . . . Follow-up Attacks . | . . . . Damage Inflicted 1293 | . . 912 381 Guns 279 | . . 211 68 Cannons 250 | . . 250 . Explosions 761 | . . 451 310 Melee . | . . . . Ramming 3 | . . . 3 Kinetic 10 | . . . 10 Thermal 74 | . . 61 13 Explosive 761 | . . 451 310 Electromagnetic 445 | . . 400 45 Impact . | . . . . Slashing . | . . . . Piercing . | . . . . Highest Corruption . | . . . . Average Corruption . | . . . . Corruption Purged . | . . . . Overload Shots . | . . . . Overflow Damage 25 | . . 11 14 Projectiles 11 | . . 11 . Explosions 14 | . . . 14 Melee . | . . . . Knockbacks . | . . . . Impact . | . . . . Kinetic . | . . . . Secondary . | . . . . Self-Inflicted Damage 71 | . . 58 13 Shots 3 | . . 2 1 Rammed 2 | . . . 2 Targets Rammed 2 | . . . 2 Kicked . | . . . . Crushed . | . . . . Highest Temperature 321 | . 30 321 33 Average Temperature 89 | . 17 98 18 Received Heat Transfer 238 | . . 166 72 Siege Activations . | . . . . Robots Corrupted 1 | . . 1 . Combat Hostiles 1 | . . 1 . Parts Fried 2 | . . 2 . Impact Corruptions . | . . . . Robots Melted . | . . . . Combat Hostiles . | . . . . Parts Melted . | . . . . Heat Transferred 222 | . . 185 37 Parts Sabotaged . | . . . . Parts Stolen . | . . . . Parts Stripped . | . . . . Power Chain Reactions . | . . . . Missiles Intercepted . | . . . . Alert | -11 -10 -10 -9 ------- Run | Scr Mat Min Mat Peak Influence 143 | . 25 89 143 Initial 13 | . . 9 13 Average 39 | . 4 42 80 Maximum Alert Level . | . . . . Low Security (%) 100 | 100 100 100 100 Level 1 . | . . . . Level 2 . | . . . . Level 3 . | . . . . Level 4 . | . . . . Level 5 . | . . . . High Security . | . . . . Max Security . | . . . . Squads Dispatched 2 | . . . 2 Investigation 1 | . . . 1 Extermination . | . . . . Reinforcement 1 | . . . 1 Assault . | . . . . Garrison . | . . . . Intercept . | . . . . Construction Impeded . | . . . . Haulers Reinforced . | . . . . Stealth | -11 -10 -10 -9 --------- Run | Scr Mat Min Mat Distress Signals 1 | . . . 1 Communications Jammed . | . . . . Distress Signals . | . . . . Times Spotted 36 | . 1 20 15 Peak Tracking Total 7 | . 1 5 7 Tactical Retreats 1 | . . 1 . Traps | -11 -10 -10 -9 ------- Run | Scr Mat Min Mat Traps Triggered . | . . . . Indirectly . | . . . . Trap Hack Attempts . | . . . . Triggered . | . . . . Disarmed . | . . . . Reprogrammed . | . . . . Reused . | . . . . Traps Extracted . | . . . . Installed . | . . . . Triggered . | . . . . Machines | -11 -10 -10 -9 ---------- Run | Scr Mat Min Mat Machines Disabled 2 | . . 1 1 Max in Single Turn 1 | . . 1 1 Machines Sabotaged 1 | . . . 1 Garrisons Compromised . | . . . . Overloaded Fab Kills . | . . . . Fab Network Shutdowns . | . . . . Hacking | -11 -10 -10 -9 --------- Run | Scr Mat Min Mat Machines Accessed 3 | . 1 1 1 Terminals 2 | . 1 . 1 Fabricators . | . . . . Repair Stations . | . . . . Recycling Units . | . . . . Scanalyzers . | . . . . Garrison Access . | . . . . Total Hacks 5 | . 3 1 1 Successful 4 | . 2 1 1 Failed 1 | . 1 . . Catastrophic . | . . . . Database Lockouts . | . . . . Manual 1 | . . . 1 Terminals 4 | . 3 . 1 Fabricators . | . . . . Repair Stations . | . . . . Recycling Units . | . . . . Scanalyzers . | . . . . Garrison Access . | . . . . Terminal Hacks 3 | . 2 1 . Open Door 1 | . . 1 . Transport Status 1 | . 1 . . Zone Layout 1 | . 1 . . Fabricator Hacks . | . . . . Repair Station Hacks . | . . . . Recycling Unit Hacks . | . . . . Scanalyzer . | . . . . Garrison Access Hacks . | . . . . Unauthorized Hacks 1 | . . . 1 Terminals 1 | . . . 1 Sabotage 1 | . . . 1 Fabricators . | . . . . Repair Stations . | . . . . Recycling Units . | . . . . Scanalyzers . | . . . . Garrison Access . | . . . . Data Cores Recovered . | . . . . Used . | . . . . Hacking Detections . | . . . . Full Trace Events . | . . . . Feedback Events . | . . . . Feedback Blocked . | . . . . Robot Schematics Acquired . | . . . . Robots Built . | . . . . Matter . | . . . . Time . | . . . . Total Robot Build Rating . | . . . . Part Schematics Acquired . | . . . . Parts Built . | . . . . Matter . | . . . . Time . | . . . . Total Part Build Rating . | . . . . Parts Repaired . | . . . . Time . | . . . . Parts Recycled . | . . . . Recycled Matter . | . . . . Retrieved Matter . | . . . . Retrieved Components . | . . . . Parts Scanalyzed . | . . . . Part Schematics Acquired . | . . . . Parts Damaged . | . . . . Bothacking | -11 -10 -10 -9 ------------ Run | Scr Mat Min Mat Used RIF Installer . | . . . . Robots Hacked . | . . . . Non-combat . | . . . . Combat . | . . . . Robot Hacks Applied . | . . . . Relay Couplers Released . | . . . . Robots Rewired . | . . . . Allies Hacked . | . . . . Hacks Repelled . | . . . . Allies | -11 -10 -10 -9 -------- Run | Scr Mat Min Mat Total Allies . | . . . . Largest Group . | . . . . Highest-Rated Group . | . . . . Highest-Rated Ally . | . . . . Total Orders . | . . . . Ally Attacks . | . . . . Total Damage . | . . . . Kills . | . . . . Allies Corrupted . | . . . . Allies Melted . | . . . . Intel | -11 -10 -10 -9 ------- Run | Scr Mat Min Mat Robot Analysis Total . | . . . . Derelict Logs Recovered 2 | . . 2 . Drone Launches . | . . . . Drone Recoveries . | . . . . Exploration | -11 -10 -10 -9 ------------- Run | Scr Mat Min Mat Turns Passed 887 | 61 100 643 83 Spaces Moved 642 | 54 105 416 67 Core 30 | 1 . . 29 Treads . | . . . . Legs 173 | . . 173 . Wheels 439 | 53 105 243 38 Hover . | . . . . Flight . | . . . . Fastest Speed 50 | 50 90 90 50 Average Speed 103 | 89 90 113 76 Slowest Speed 150 | 100 90 150 150 Overloaded Moves . | . . . . Propulsion Burnouts . | . . . . Robots Hopped . | . . . . Cave-ins Triggered . | . . . . Exploration Rate (%) 33 | 3 27 90 12 Regions Visited 3 Branch Regions 1 Pre-discovered Areas 1 | . . 1 . Known Exits Taken . | . . . . Unknown Exits Taken 3 | 1 1 1 . Scrap Searched . | . . . . Spaces Dug . | . . . . Terrain Destroyed 112 | . . 76 36 Melee . | . . . . Projectile . | . . . . AOE 112 | . . 76 36 Terrain Rammed . | . . . . Walls Destroyed . | . . . . Machines Disabled . | . . . . Actions | -11 -10 -10 -9 --------- Run | Scr Mat Min Mat Total 790 | 63 107 534 86 Wait 76 | . . 73 3 Move 639 | 53 104 415 67 Hop . | . . . . Pick Up 10 | 4 1 5 . Fast Attach 11 | 6 1 3 1 Attach 6 | . . 3 3 Detach 3 | . . 1 2 Swap 1 | . . 1 . Drop 4 | . . 4 . Fire 38 | . 1 29 8 Melee . | . . . . Ram 2 | . . . 2 Kick . | . . . . Crush . | . . . . Escape Stasis . | . . . . Rewire . | . . . . Trap . | . . . . Miscellaneous . | . . . . Route ------- -11/Scrapyard -10/Materials -10/Mines -9/Materials (discovered 1 exit: Mat) History --------- Turn | Location | Event 10 | -11/Scrapyard | Discovered new exit (range 16) 62 | -11/Scrapyard | Entered Materials 114 | -10/Materials | Discovered new exit (range 12) 162 | -10/Materials | Entered Mines 262 | -10/Mines | Met a Derelict who couldn't figure out how to use a Trap Extractor 304 | -10/Mines | Build established: Mutant 372 | -10/Mines | Learned location of Storage (-8) 383 | -10/Mines | Received a Rocket Launcher from a helpful Derelict 448 | -10/Mines | Assembled infested the area 720 | -10/Mines | Learned location of 1 exit from Materials 795 | -10/Mines | Discovered new exit (range 12) 805 | -10/Mines | Entered Materials 805 | -9/Materials | Evolved 2 slots: Utility x1, Weapon x1 806 | -9/Materials | Identified exit to Materials 881 | -9/Materials | Core integrity fell below 50% 888 | -9/Materials | Self-destructed Last Messages --------------- 00861_ Connecting with Terminal... 00861_ Current location identified: Materials >>Force(Sabotage) SYSTEM_VULNERABLE[Fusion Modulator] NETWORK_OVERLOAD COORDINATES_RETRIEVED 00861_ ALERT: Suspicious activity at Terminal M005. Dispatching Investigation squad. 00862_ Wheel destroyed. 00863_ Slammed into S-10 Pest. 00865_ Slammed into Y-45 Defender. 00868_ K-01 Serf collects debris. 00869_ Lgt. Ion Engine destroyed. 00871_ Sensor Array destroyed. 00871_ Acquired Lgt. Assault Rifle. 00871_ K-01 Serf cleans the Electrolysis Chamber. 00874_ The unstable cave ceiling collapses. 00874_ K-01 Serf cleans the Electrolysis Chamber. 00877_ Electrolysis Chamber disabled. 00878_ K-01 Serf cleans the Electrolysis Chamber. Map ----- +----------------------------------------------------+ | ??????????????????????????????????????# #?????? | | ????????????????????????????########### #?????? | | ????????????????????????????# # #?????? | | ????????????????????????????# # #?????? | | ????????????????????????????# """ """ # #?????? | | ????????????????????????????# """ """ # #?????? | | ????????????????????????????# """ "" # #?????? | | ????????????????????????????# # #?????? | | ????????????????????????????# # #?????? | | ???????????????????????????## # #?????? | | ?????????????????????????### # #?????? | | ?????????????????????????# ##????? | | ?????????????????????????# # #????? | | ?????????????????????????# ! = #????? | | ?????????????????????????# ! # ! * #????? | | ?????????????????????????# * # #????? | | ??????????????? ????????# %% ####/####?? | | ??????????????# ???????# # #? | | ??????????????? ?????# ## + !!! "T" #? | | ??????????????# ????# ## # !! """ #? | | ??????????????# #######/## # !! #? | | ??????????????# ##### #####? | | ????????????? ##??###????? | | ????????????? #????????? | | ????????????? ##+##+#### #????????? | | ??????????????######??# @ #??# ###????????? | | ??????????????????????#""" #?? #?????????? | | ??????????????????????#""" #??? #????????? | | ??????????????????????#""" #????? #????????? | | ??????????????????????# #?????? #????????? | | ??????????????????????# #?????? #????????? | | ??????????????????????# #???????"#????????? | | ??????????????????????#######?????????????????? | | ??????????????????????????????????????????????? | | ??????????????????????????????????????????????? | | ??????????????????????????????????????????????? | | ??????????????????????????????????????????????? | | ??????????????????????????????????????????????? | | | | | | | | | | | | | | | | | | | | | | | | | +----------------------------------------------------+ Best States ------------- Heat Dissipation 28 Energy Generation 10 Energy Capacity 250 Matter Stores 300 Matter Capacity 300 Sight Range 16 Robot Scan Range 10 Terrain Scan Density 10 Evasion (%) 50 Item Schematics ----------------- None Robot Schematics ------------------ None Fabricated ------------ Nothing Alien Tech Used ----------------- None Achievements -------------- None Challenges ------------ None Game ------ Seed AutogunMeleeMicroactuators Manual? 0 Play Time 00:08:59 Cumulative 76.2 hours Start 2020.11.10 @ 16:32:38 End 2020.11.10 @ 16:40:21 Sessions 1 Manual Loads 0 Difficulty Rogue Special Mode Halloween2020/ForbiddenLore Game No. 151 Rogue 147 Adventurer 0 Explorer 4 Win Type - Total 0 Types 0/0/0/0/0/0/0/0/0 Lore% 57 Gallery% 62 Achievement% 43 Wizard Run 0 Options --------- ASCII 1 Keyboard 1 Movement Numpad Keybinds 0 Fullscreen 1 Font 18/CogWide Map View 76x50 Tactical HUD 1 Map Filters NONE Filters NONE Steam 1 RUN: d136ea89-3ad3-44fa-a443-a076ebba4f69